[Event "Early Titled Tuesday Blitz | February 8 2022"]
[White "Pesotskiy, Mikhail"]
[Black "Aradhya, Garg"]
[WhiteFideId "34164453"]
[BlackFideId "25006746"]
[WhiteElo "2010"]
[BlackElo "2169"]
[Result "1-0"]
[Round "11"]
[TimeControl "180+1"]
[Date "2022.02.08"]
[WhiteClock "0:00:17"]
[BlackClock "0:00:08"]

1. d4 {[%clk 0:03:00]}  d5 {[%clk 0:02:58]} 2. c4 {[%clk 0:03:00]}  c6 {[%clk 0:02:58]} 3. Nf3 {[%clk 0:02:59]}  Nf6 {[%clk 0:02:58]} 4. Nbd2 {[%clk 0:02:59]}  Bf5 {[%clk 0:02:57]} 5. Nh4 {[%clk 0:02:59]}  Be4 {[%clk 0:02:58]} 6. f3 {[%clk 0:02:57]}  Bg6 {[%clk 0:02:57]} 7. Qb3 {[%clk 0:02:58]}  Qb6 {[%clk 0:02:45]} 8. Nxg6 {[%clk 0:02:55]}  hxg6 {[%clk 0:02:44]} 9. e3 {[%clk 0:02:56]}  e6 {[%clk 0:02:43]} 10. g3 {[%clk 0:02:56]}  Bd6 {[%clk 0:02:42]} 11. Bg2 {[%clk 0:02:57]}  Qc7 {[%clk 0:02:39]} 12. c5 {[%clk 0:02:42]}  Be7 {[%clk 0:02:24]} 13. f4 {[%clk 0:02:39]}  b6 {[%clk 0:02:24]} 14. cxb6 {[%clk 0:02:25]}  axb6 {[%clk 0:02:25]} 15. O-O {[%clk 0:02:24]}  c5 {[%clk 0:02:24]} 16. e4 {[%clk 0:02:13]}  Nc6 {[%clk 0:02:23]} 17. dxc5 {[%clk 0:01:59]}  Bxc5+ {[%clk 0:02:22]} 18. Kh1 {[%clk 0:01:59]}  Ng4 {[%clk 0:02:16]} 19. h3 {[%clk 0:01:58]}  Ne3 {[%clk 0:02:15]} 20. exd5 {[%clk 0:01:57]}  exd5 {[%clk 0:02:07]} 21. Re1 {[%clk 0:01:52]}  O-O-O {[%clk 0:02:04]} 22. Rxe3 {[%clk 0:01:50]}  Na5 {[%clk 0:01:59]} 23. Qd3 {[%clk 0:01:45]}  Bxe3 {[%clk 0:01:59]} 24. Qxe3 {[%clk 0:01:46]}  Rhe8 {[%clk 0:01:59]} 25. Qg1 {[%clk 0:01:40]}  Nc6 {[%clk 0:01:43]} 26. Nb3 {[%clk 0:01:29]}  Re6 {[%clk 0:01:31]} 27. Be3 {[%clk 0:01:05]}  d4 {[%clk 0:01:31]} 28. Nxd4 {[%clk 0:01:03]}  Rxe3 {[%clk 0:01:30]} 29. Qxe3 {[%clk 0:00:51]}  Rxd4 {[%clk 0:01:26]} 30. Rc1 {[%clk 0:00:51]}  Rd6 {[%clk 0:01:26]} 31. Qe8+ {[%clk 0:00:21]}  Kb7 {[%clk 0:01:25]} 32. Bxc6+ {[%clk 0:00:21]}  Rxc6 {[%clk 0:01:25]} 33. Qe4 {[%clk 0:00:21]}  f5 {[%clk 0:01:17]} 34. Qf3 {[%clk 0:00:21]}  b5 {[%clk 0:01:16]} 35. Kg2 {[%clk 0:00:20]}  Kb6 {[%clk 0:01:15]} 36. Rxc6+ {[%clk 0:00:19]}  Qxc6 {[%clk 0:01:16]} 37. Qxc6+ {[%clk 0:00:20]}  Kxc6 {[%clk 0:01:17]} 38. Kf3 {[%clk 0:00:21]}  Kd5 {[%clk 0:01:17]} 39. Ke3 {[%clk 0:00:21]}  Kc4 {[%clk 0:01:17]} 40. Kd2 {[%clk 0:00:16]}  Kd4 {[%clk 0:01:17]} 41. b3 {[%clk 0:00:15]}  b4 {[%clk 0:01:11]} 42. Kc2 {[%clk 0:00:14]}  Ke3 {[%clk 0:01:03]} 43. a4 {[%clk 0:00:14]}  bxa3 {[%clk 0:01:01]} 44. b4 {[%clk 0:00:13]}  a2 {[%clk 0:00:14]} 45. Kb2 {[%clk 0:00:14]}  Kd4 {[%clk 0:00:11]} 46. Kxa2 {[%clk 0:00:14]}  Kc4 {[%clk 0:00:11]} 47. Ka3 {[%clk 0:00:14]}  Kb5 {[%clk 0:00:09]} 48. Kb3 {[%clk 0:00:15]}  Kb6 {[%clk 0:00:09]} 49. Kc4 {[%clk 0:00:15]}  Kc6 {[%clk 0:00:09]} 50. b5+ {[%clk 0:00:15]}  Kb6 {[%clk 0:00:10]} 51. Kb4 {[%clk 0:00:16]}  Kb7 {[%clk 0:00:09]} 52. Kc5 {[%clk 0:00:16]}  Kc7 {[%clk 0:00:09]} 53. b6+ {[%clk 0:00:16]}  Kb7 {[%clk 0:00:09]} 54. Kb5 {[%clk 0:00:17]}  Kb8 {[%clk 0:00:08]} 55. Kc6 {[%clk 0:00:17]}  Kc8 {[%clk 0:00:08]} 56. b7+ {[%clk 0:00:17]}  Kb8 {[%clk 0:00:08]} 57. Kb6 {[%clk 0:00:17]} 1-0


[Site "https://www.chess.com"]

[Event "Early Titled Tuesday Blitz | February 8 2022"]
[White "Praggnanandhaa R"]
[Black "Guliyev, Namig"]
[WhiteFideId "25059530"]
[BlackFideId "13400363"]
[WhiteElo "2599"]
[BlackElo "2487"]
[Result "1-0"]
[Round "11"]
[TimeControl "180+1"]
[Date "2022.02.08"]
[WhiteClock "0:00:13"]
[BlackClock "0:00:01"]

1. Nf3 {[%clk 0:03:00]}  d5 {[%clk 0:02:59]} 2. g3 {[%clk 0:03:00]}  Nd7 {[%clk 0:02:59]} 3. d4 {[%clk 0:03:00]}  Nb6 {[%clk 0:02:56]} 4. Bg2 {[%clk 0:02:58]}  Bf5 {[%clk 0:02:54]} 5. O-O {[%clk 0:02:55]}  Nf6 {[%clk 0:02:55]} 6. Ne5 {[%clk 0:02:52]}  e6 {[%clk 0:02:54]} 7. c4 {[%clk 0:02:52]}  Be4 {[%clk 0:02:48]} 8. f3 {[%clk 0:02:41]}  Bg6 {[%clk 0:02:45]} 9. Nc3 {[%clk 0:02:40]}  Nxc4 {[%clk 0:02:44]} 10. Nxc4 {[%clk 0:02:40]}  dxc4 {[%clk 0:02:44]} 11. Qa4+ {[%clk 0:02:40]}  c6 {[%clk 0:02:41]} 12. Qxc4 {[%clk 0:02:37]}  Be7 {[%clk 0:02:40]} 13. e4 {[%clk 0:02:37]}  O-O {[%clk 0:02:39]} 14. Be3 {[%clk 0:02:37]}  Nd7 {[%clk 0:02:35]} 15. Rfd1 {[%clk 0:02:37]}  Rc8 {[%clk 0:02:31]} 16. b4 {[%clk 0:02:37]}  a6 {[%clk 0:02:31]} 17. a3 {[%clk 0:02:36]}  Qb6 {[%clk 0:02:31]} 18. Qe2 {[%clk 0:02:36]}  Qc7 {[%clk 0:02:29]} 19. Rac1 {[%clk 0:02:35]}  Qb8 {[%clk 0:02:29]} 20. f4 {[%clk 0:02:29]}  f5 {[%clk 0:02:10]} 21. d5 {[%clk 0:02:16]}  cxd5 {[%clk 0:01:58]} 22. exd5 {[%clk 0:02:15]}  e5 {[%clk 0:01:56]} 23. d6 {[%clk 0:02:07]}  Bd8 {[%clk 0:01:39]} 24. fxe5 {[%clk 0:02:05]}  Nxe5 {[%clk 0:01:39]} 25. Nd5 {[%clk 0:01:24]}  Rxc1 {[%clk 0:01:33]} 26. Rxc1 {[%clk 0:01:25]}  Re8 {[%clk 0:00:52]} 27. Nc7 {[%clk 0:01:14]}  Bxc7 {[%clk 0:00:38]} 28. dxc7 {[%clk 0:01:13]}  Qc8 {[%clk 0:00:38]} 29. Bf4 {[%clk 0:01:11]}  Nc6 {[%clk 0:00:29]} 30. Qd3 {[%clk 0:01:10]}  Bf7 {[%clk 0:00:26]} 31. Rd1 {[%clk 0:01:10]}  Be6 {[%clk 0:00:20]} 32. Qd6 {[%clk 0:01:08]}  h6 {[%clk 0:00:18]} 33. h4 {[%clk 0:01:06]}  Kh7 {[%clk 0:00:18]} 34. Kh2 {[%clk 0:01:02]}  Bf7 {[%clk 0:00:16]} 35. Rd2 {[%clk 0:01:01]}  Be6 {[%clk 0:00:16]} 36. Re2 {[%clk 0:01:00]}  Bd7 {[%clk 0:00:15]} 37. Rd2 {[%clk 0:00:58]}  Be6 {[%clk 0:00:14]} 38. a4 {[%clk 0:00:58]}  Qa8 {[%clk 0:00:10]} 39. b5 {[%clk 0:00:56]}  axb5 {[%clk 0:00:10]} 40. axb5 {[%clk 0:00:57]}  Na7 {[%clk 0:00:09]} 41. b6 {[%clk 0:00:50]}  Nc8 {[%clk 0:00:09]} 42. Qc5 {[%clk 0:00:46]}  Qa6 {[%clk 0:00:06]} 43. Rd8 {[%clk 0:00:46]}  Rg8 {[%clk 0:00:06]} 44. Be3 {[%clk 0:00:32]}  Qe2 {[%clk 0:00:04]} 45. Rd2 {[%clk 0:00:17]}  Qe1 {[%clk 0:00:03]} 46. Qd4 {[%clk 0:00:14]}  Qb1 {[%clk 0:00:01]} 47. Bf4 {[%clk 0:00:13]} 1-0


[Site "https://www.chess.com"]

[Event "Early Titled Tuesday Blitz | February 8 2022"]
[White "Rodchenkov, Sergey D."]
[Black "Petesch, Gabriel"]
[WhiteFideId "4168712"]
[BlackFideId "2032465"]
[WhiteElo "2306"]
[BlackElo "2374"]
[Result "1-0"]
[Round "11"]
[TimeControl "180+1"]
[Date "2022.02.08"]
[WhiteClock "0:00:22"]
[BlackClock "0:00:21"]

1. e4 {[%clk 0:03:00]}  e6 {[%clk 0:02:57]} 2. d4 {[%clk 0:03:00]}  d5 {[%clk 0:02:57]} 3. Nc3 {[%clk 0:03:00]}  dxe4 {[%clk 0:02:57]} 4. Nxe4 {[%clk 0:03:01]}  Nf6 {[%clk 0:02:56]} 5. Nxf6+ {[%clk 0:03:01]}  Qxf6 {[%clk 0:02:55]} 6. Nf3 {[%clk 0:03:01]}  c5 {[%clk 0:02:51]} 7. Bg5 {[%clk 0:02:55]}  Qf5 {[%clk 0:02:47]} 8. dxc5 {[%clk 0:02:38]}  f6 {[%clk 0:02:44]} 9. Bd3 {[%clk 0:02:21]}  Qg4 {[%clk 0:02:21]} 10. Be3 {[%clk 0:02:19]}  Qxg2 {[%clk 0:02:15]} 11. Rg1 {[%clk 0:02:18]}  Qh3 {[%clk 0:02:15]} 12. Qe2 {[%clk 0:02:17]}  Qh5 {[%clk 0:02:12]} 13. O-O-O {[%clk 0:02:16]}  Nc6 {[%clk 0:02:10]} 14. Be4 {[%clk 0:02:07]}  Bd7 {[%clk 0:02:07]} 15. Rxd7 {[%clk 0:01:45]}  Kxd7 {[%clk 0:02:04]} 16. Qb5 {[%clk 0:01:44]}  Kc7 {[%clk 0:01:46]} 17. Nd4 {[%clk 0:01:37]}  Qe8 {[%clk 0:01:38]} 18. Nxc6 {[%clk 0:01:13]}  bxc6 {[%clk 0:01:34]} 19. Qa5+ {[%clk 0:01:13]}  Kb7 {[%clk 0:01:30]} 20. b4 {[%clk 0:01:08]}  Rc8 {[%clk 0:01:13]} 21. b5 {[%clk 0:01:06]}  Kb8 {[%clk 0:00:41]} 22. bxc6 {[%clk 0:00:48]}  Rxc6 {[%clk 0:00:37]} 23. Qb5+ {[%clk 0:00:45]}  Kc7 {[%clk 0:00:35]} 24. Bd2 {[%clk 0:00:31]}  Bxc5 {[%clk 0:00:27]} 25. Rxg7+ {[%clk 0:00:27]}  Kd6 {[%clk 0:00:24]} 26. Bf4+ {[%clk 0:00:22]}  e5 {[%clk 0:00:22]} 27. Qd3+ {[%clk 0:00:22]}  Ke6 {[%clk 0:00:21]} 28. Qd5# {[%clk 0:00:22]} 1-0


[Site "https://www.chess.com"]

[Event "Early Titled Tuesday Blitz | February 8 2022"]
[White "Samarth, J Rao"]
[Black "Manon-og, Ramon Jr."]
[WhiteFideId "46652370"]
[BlackFideId "5200776"]
[WhiteElo "1514"]
[BlackElo "2330"]
[Result "0-1"]
[Round "11"]
[TimeControl "180+1"]
[Date "2022.02.08"]
[WhiteClock "0:00:44"]
[BlackClock "0:01:16"]

1. e4 {[%clk 0:03:00]}  c5 {[%clk 0:02:58]} 2. Nc3 {[%clk 0:02:57]}  d6 {[%clk 0:02:58]} 3. g3 {[%clk 0:02:58]}  Nf6 {[%clk 0:02:58]} 4. Bg2 {[%clk 0:02:58]}  g6 {[%clk 0:02:59]} 5. d3 {[%clk 0:02:59]}  Bg7 {[%clk 0:02:59]} 6. f3 {[%clk 0:02:49]}  O-O {[%clk 0:02:59]} 7. Be3 {[%clk 0:02:50]}  Nc6 {[%clk 0:02:59]} 8. Qd2 {[%clk 0:02:50]}  Nd4 {[%clk 0:02:59]} 9. Nge2 {[%clk 0:02:50]}  e5 {[%clk 0:02:59]} 10. h4 {[%clk 0:02:48]}  h5 {[%clk 0:02:51]} 11. Nd1 {[%clk 0:02:47]}  Be6 {[%clk 0:02:50]} 12. c3 {[%clk 0:02:45]}  Nc6 {[%clk 0:02:50]} 13. O-O {[%clk 0:02:45]}  b6 {[%clk 0:02:49]} 14. Bh6 {[%clk 0:02:42]}  d5 {[%clk 0:02:48]} 15. Bxg7 {[%clk 0:02:42]}  Kxg7 {[%clk 0:02:49]} 16. Qc2 {[%clk 0:02:36]}  dxe4 {[%clk 0:02:46]} 17. dxe4 {[%clk 0:02:35]}  Qe7 {[%clk 0:02:44]} 18. Ne3 {[%clk 0:02:34]}  Rad8 {[%clk 0:02:44]} 19. Rad1 {[%clk 0:02:30]}  Rxd1 {[%clk 0:02:43]} 20. Rxd1 {[%clk 0:02:30]}  Rd8 {[%clk 0:02:44]} 21. b3 {[%clk 0:02:28]}  Qb7 {[%clk 0:02:37]} 22. Rxd8 {[%clk 0:02:25]}  Nxd8 {[%clk 0:02:37]} 23. Qd1 {[%clk 0:02:25]}  Qa6 {[%clk 0:02:35]} 24. Bf1 {[%clk 0:02:13]}  Nb7 {[%clk 0:02:24]} 25. Qd2 {[%clk 0:02:09]}  Qa3 {[%clk 0:02:21]} 26. Kh2 {[%clk 0:02:02]}  a5 {[%clk 0:02:19]} 27. Nc1 {[%clk 0:01:55]}  a4 {[%clk 0:02:18]} 28. Bc4 {[%clk 0:01:52]}  axb3 {[%clk 0:02:14]} 29. axb3 {[%clk 0:01:47]}  Bd7 {[%clk 0:02:00]} 30. Nc2 {[%clk 0:01:44]}  Qb2 {[%clk 0:01:53]} 31. Nd3 {[%clk 0:01:43]}  Qb1 {[%clk 0:01:53]} 32. Nxe5 {[%clk 0:01:43]}  b5 {[%clk 0:01:44]} 33. Bxf7 {[%clk 0:01:41]}  Qf1 {[%clk 0:01:31]} 34. Nxd7 {[%clk 0:01:35]}  Nxd7 {[%clk 0:01:30]} 35. Ne1 {[%clk 0:01:05]}  Ne5 {[%clk 0:01:25]} 36. Bd5 {[%clk 0:01:02]}  Nd6 {[%clk 0:01:21]} 37. Qe3 {[%clk 0:00:54]}  Qxe1 {[%clk 0:01:20]} 38. Qxe1 {[%clk 0:00:49]}  Nxf3+ {[%clk 0:01:20]} 39. Kh3 {[%clk 0:00:49]}  Nxe1 {[%clk 0:01:21]} 40. b4 {[%clk 0:00:50]}  cxb4 {[%clk 0:01:19]} 41. cxb4 {[%clk 0:00:51]}  Nd3 {[%clk 0:01:19]} 42. Bc6 {[%clk 0:00:49]}  Kf6 {[%clk 0:01:15]} 43. g4 {[%clk 0:00:46]}  Ke5 {[%clk 0:01:15]} 44. gxh5 {[%clk 0:00:44]}  gxh5 {[%clk 0:01:16]} 0-1


[Site "https://www.chess.com"]

[Event "Early Titled Tuesday Blitz | February 8 2022"]
[White "Shuvalov, Evgenij"]
[Black "Golubka, Petro"]
[WhiteFideId "4187237"]
[BlackFideId "14114224"]
[WhiteElo "2119"]
[BlackElo "2392"]
[Result "0-1"]
[Round "11"]
[TimeControl "180+1"]
[Date "2022.02.08"]
[WhiteClock "0:00:25"]
[BlackClock "0:00:48"]

1. Nf3 {[%clk 0:03:00]}  Nf6 {[%clk 0:02:05]} 2. c4 {[%clk 0:03:00]}  c6 {[%clk 0:02:05]} 3. g3 {[%clk 0:02:59]}  d5 {[%clk 0:02:06]} 4. Bg2 {[%clk 0:03:00]}  e6 {[%clk 0:02:06]} 5. b3 {[%clk 0:02:59]}  Nbd7 {[%clk 0:02:07]} 6. Bb2 {[%clk 0:02:59]}  Be7 {[%clk 0:02:07]} 7. O-O {[%clk 0:02:59]}  O-O {[%clk 0:02:07]} 8. d3 {[%clk 0:02:58]}  a6 {[%clk 0:02:07]} 9. Nbd2 {[%clk 0:02:57]}  c5 {[%clk 0:02:06]} 10. e3 {[%clk 0:02:56]}  b5 {[%clk 0:02:04]} 11. Qe2 {[%clk 0:02:54]}  Bb7 {[%clk 0:02:04]} 12. Rfd1 {[%clk 0:02:54]}  Qb6 {[%clk 0:02:03]} 13. Rac1 {[%clk 0:02:48]}  Rfd8 {[%clk 0:02:03]} 14. Ba1 {[%clk 0:02:42]}  Rac8 {[%clk 0:02:02]} 15. d4 {[%clk 0:02:34]}  b4 {[%clk 0:01:58]} 16. cxd5 {[%clk 0:02:25]}  exd5 {[%clk 0:01:59]} 17. dxc5 {[%clk 0:02:24]}  Nxc5 {[%clk 0:02:00]} 18. Bd4 {[%clk 0:02:20]}  Qa5 {[%clk 0:01:56]} 19. Bh3 {[%clk 0:02:16]}  Ne6 {[%clk 0:01:56]} 20. Bxe6 {[%clk 0:02:15]}  fxe6 {[%clk 0:01:57]} 21. Ng5 {[%clk 0:02:13]}  Qxa2 {[%clk 0:01:54]} 22. Nxe6 {[%clk 0:02:08]}  Rxc1 {[%clk 0:01:53]} 23. Rxc1 {[%clk 0:02:09]}  Rc8 {[%clk 0:01:54]} 24. Ra1 {[%clk 0:02:06]}  Qc2 {[%clk 0:01:53]} 25. Nf4 {[%clk 0:02:02]}  Kf7 {[%clk 0:01:32]} 26. Rxa6 {[%clk 0:01:30]}  Bxa6 {[%clk 0:01:29]} 27. Qxa6 {[%clk 0:01:31]}  Rc6 {[%clk 0:01:23]} 28. Qb7 {[%clk 0:01:25]}  Rc7 {[%clk 0:01:22]} 29. Qa6 {[%clk 0:01:24]}  Qc6 {[%clk 0:01:19]} 30. Qd3 {[%clk 0:01:19]}  Qc1+ {[%clk 0:01:15]} 31. Kg2 {[%clk 0:01:19]}  Qc2 {[%clk 0:01:16]} 32. Qa6 {[%clk 0:01:17]}  Qxd2 {[%clk 0:01:10]} 33. Qe6+ {[%clk 0:01:09]}  Kf8 {[%clk 0:01:09]} 34. g4 {[%clk 0:01:04]}  Rc2 {[%clk 0:01:00]} 35. Nh3 {[%clk 0:01:01]}  h6 {[%clk 0:00:55]} 36. g5 {[%clk 0:00:53]}  hxg5 {[%clk 0:00:54]} 37. Qf5 {[%clk 0:00:29]}  Qe2 {[%clk 0:00:51]} 38. Bxf6 {[%clk 0:00:26]}  gxf6 {[%clk 0:00:46]} 39. Nxg5 {[%clk 0:00:26]}  Qxf2+ {[%clk 0:00:45]} 40. Qxf2 {[%clk 0:00:25]}  Rxf2+ {[%clk 0:00:46]} 41. Kxf2 {[%clk 0:00:26]}  fxg5 {[%clk 0:00:46]} 42. Ke2 {[%clk 0:00:26]}  Kf7 {[%clk 0:00:46]} 43. h3 {[%clk 0:00:26]}  Ke6 {[%clk 0:00:47]} 44. Kf3 {[%clk 0:00:26]}  Kf5 {[%clk 0:00:47]} 45. Kf2 {[%clk 0:00:25]}  Ke4 {[%clk 0:00:47]} 46. Ke2 {[%clk 0:00:25]}  Bd8 {[%clk 0:00:48]} 0-1


[Site "https://www.chess.com"]

[Event "Early Titled Tuesday Blitz | February 8 2022"]
[White "Shyaamnikhil P"]
[Black "Gurevich, Dmitry"]
[WhiteFideId "5024218"]
[BlackFideId "2000407"]
[WhiteElo "2292"]
[BlackElo "2506"]
[Result "1-0"]
[Round "11"]
[TimeControl "180+1"]
[Date "2022.02.08"]
[WhiteClock "0:00:48"]
[BlackClock "0:01:18"]

1. d4 {[%clk 0:03:00]}  d5 {[%clk 0:02:59]} 2. Nf3 {[%clk 0:03:00]}  Nf6 {[%clk 0:02:59]} 3. c4 {[%clk 0:03:00]}  e6 {[%clk 0:02:59]} 4. Nc3 {[%clk 0:02:58]}  Be7 {[%clk 0:02:59]} 5. e3 {[%clk 0:02:57]}  O-O {[%clk 0:02:59]} 6. Be2 {[%clk 0:02:52]}  c5 {[%clk 0:02:59]} 7. O-O {[%clk 0:02:53]}  cxd4 {[%clk 0:02:58]} 8. exd4 {[%clk 0:02:54]}  dxc4 {[%clk 0:02:54]} 9. Bxc4 {[%clk 0:02:55]}  Nc6 {[%clk 0:02:54]} 10. a3 {[%clk 0:02:53]}  b6 {[%clk 0:02:54]} 11. d5 {[%clk 0:02:53]}  Na5 {[%clk 0:02:53]} 12. Ba2 {[%clk 0:02:52]}  exd5 {[%clk 0:02:52]} 13. Nxd5 {[%clk 0:02:52]}  Nxd5 {[%clk 0:02:52]} 14. Bxd5 {[%clk 0:02:53]}  Bb7 {[%clk 0:02:49]} 15. Bxb7 {[%clk 0:02:51]}  Nxb7 {[%clk 0:02:46]} 16. b4 {[%clk 0:02:50]}  Bf6 {[%clk 0:02:45]} 17. Ra2 {[%clk 0:02:49]}  Qxd1 {[%clk 0:02:41]} 18. Rxd1 {[%clk 0:02:48]}  Rfd8 {[%clk 0:02:41]} 19. Rxd8+ {[%clk 0:02:23]}  Rxd8 {[%clk 0:02:40]} 20. Bd2 {[%clk 0:02:24]}  Nd6 {[%clk 0:02:37]} 21. Kf1 {[%clk 0:02:22]}  Nc4 {[%clk 0:02:31]} 22. Ke2 {[%clk 0:02:21]}  Nxd2 {[%clk 0:02:29]} 23. Rxd2 {[%clk 0:02:21]}  Rxd2+ {[%clk 0:02:26]} 24. Kxd2 {[%clk 0:02:19]}  Kf8 {[%clk 0:02:27]} 25. Kd3 {[%clk 0:02:17]}  b5 {[%clk 0:02:20]} 26. Nd4 {[%clk 0:02:13]}  a6 {[%clk 0:02:19]} 27. Nc6 {[%clk 0:01:46]}  Bb2 {[%clk 0:02:13]} 28. Ke4 {[%clk 0:01:05]}  Bxa3 {[%clk 0:02:03]} 29. Kd5 {[%clk 0:01:05]}  Ke8 {[%clk 0:01:58]} 30. Kc5 {[%clk 0:01:05]}  Kd7 {[%clk 0:01:52]} 31. Nb8+ {[%clk 0:01:04]}  Ke6 {[%clk 0:01:45]} 32. Nxa6 {[%clk 0:01:04]}  Ke5 {[%clk 0:01:45]} 33. Kxb5 {[%clk 0:01:00]}  Kd4 {[%clk 0:01:40]} 34. Kc6 {[%clk 0:01:00]}  Kd3 {[%clk 0:01:24]} 35. b5 {[%clk 0:01:00]}  Bb2 {[%clk 0:01:22]} 36. b6 {[%clk 0:00:58]}  Be5 {[%clk 0:01:18]} 37. b7 {[%clk 0:00:48]} 1-0


[Site "https://www.chess.com"]

[Event "Early Titled Tuesday Blitz | February 8 2022"]
[White "Stanisz, Patryk"]
[Black "Roman, Rodrigo"]
[WhiteFideId "1123106"]
[BlackFideId "3701220"]
[WhiteElo "1876"]
[BlackElo "2001"]
[Result "0-1"]
[Round "11"]
[TimeControl "180+1"]
[Date "2022.02.08"]
[WhiteClock "0:00:02"]
[BlackClock "0:01:15"]

1. Nf3 {[%clk 0:03:00]}  Nf6 {[%clk 0:02:59]} 2. c4 {[%clk 0:03:00]}  c5 {[%clk 0:02:58]} 3. g3 {[%clk 0:03:00]}  Nc6 {[%clk 0:02:59]} 4. Bg2 {[%clk 0:03:01]}  e6 {[%clk 0:02:58]} 5. O-O {[%clk 0:03:02]}  Be7 {[%clk 0:02:58]} 6. Nc3 {[%clk 0:03:02]}  O-O {[%clk 0:02:59]} 7. b3 {[%clk 0:03:02]}  d5 {[%clk 0:02:59]} 8. cxd5 {[%clk 0:02:58]}  exd5 {[%clk 0:02:59]} 9. d4 {[%clk 0:02:59]}  b6 {[%clk 0:02:58]} 10. Bb2 {[%clk 0:02:58]}  Be6 {[%clk 0:02:58]} 11. Rc1 {[%clk 0:02:57]}  Rc8 {[%clk 0:02:58]} 12. e3 {[%clk 0:02:48]}  h6 {[%clk 0:02:58]} 13. Ne5 {[%clk 0:02:43]}  cxd4 {[%clk 0:02:30]} 14. exd4 {[%clk 0:02:43]}  Bd6 {[%clk 0:02:28]} 15. Nxc6 {[%clk 0:02:33]}  Rxc6 {[%clk 0:02:28]} 16. Nb5 {[%clk 0:02:33]}  Rxc1 {[%clk 0:02:22]} 17. Qxc1 {[%clk 0:02:34]}  Bb8 {[%clk 0:02:23]} 18. Re1 {[%clk 0:02:16]}  Qd7 {[%clk 0:02:20]} 19. Nc3 {[%clk 0:02:12]}  Rc8 {[%clk 0:02:21]} 20. Qd2 {[%clk 0:02:12]}  Bd6 {[%clk 0:02:19]} 21. h4 {[%clk 0:01:46]}  b5 {[%clk 0:02:17]} 22. a3 {[%clk 0:01:38]}  a6 {[%clk 0:02:14]} 23. Ne2 {[%clk 0:01:24]}  Bf5 {[%clk 0:02:13]} 24. Rc1 {[%clk 0:01:20]}  Ne4 {[%clk 0:02:12]} 25. Rxc8+ {[%clk 0:01:11]}  Qxc8 {[%clk 0:02:11]} 26. Qc1 {[%clk 0:01:12]}  Qb7 {[%clk 0:02:05]} 27. Nf4 {[%clk 0:01:02]}  Nf6 {[%clk 0:01:56]} 28. Qc3 {[%clk 0:00:48]}  Be4 {[%clk 0:01:54]} 29. Nd3 {[%clk 0:00:39]}  Bxg2 {[%clk 0:01:53]} 30. Kxg2 {[%clk 0:00:40]}  Ne4 {[%clk 0:01:54]} 31. Qc2 {[%clk 0:00:40]}  Qe7 {[%clk 0:01:54]} 32. Bc1 {[%clk 0:00:37]}  Kh7 {[%clk 0:01:47]} 33. f3 {[%clk 0:00:31]}  Bxg3 {[%clk 0:01:41]} 34. Nc5 {[%clk 0:00:26]}  Qxh4 {[%clk 0:01:40]} 35. Qb2 {[%clk 0:00:04]}  Qh2+ {[%clk 0:01:29]} 36. Kf1 {[%clk 0:00:04]}  Qh1+ {[%clk 0:01:29]} 37. Ke2 {[%clk 0:00:04]}  Qg2+ {[%clk 0:01:29]} 38. Kd3 {[%clk 0:00:03]}  Qxf3+ {[%clk 0:01:30]} 39. Be3 {[%clk 0:00:04]}  Qd1+ {[%clk 0:01:24]} 40. Bd2 {[%clk 0:00:02]}  Bf4 {[%clk 0:01:15]} 0-1


[Site "https://www.chess.com"]

[Event "Early Titled Tuesday Blitz | February 8 2022"]
[White "Szpar, Milosz"]
[Black "Shimanov, Aleksandr"]
[WhiteFideId "1184989"]
[BlackFideId "4198603"]
[WhiteElo "2447"]
[BlackElo "2636"]
[Result "1-0"]
[Round "11"]
[TimeControl "180+1"]
[Date "2022.02.08"]
[WhiteClock "0:00:19"]
[BlackClock "0:00:12"]

1. e4 {[%clk 0:03:00]}  Nc6 {[%clk 0:02:47]} 2. d4 {[%clk 0:03:00]}  d5 {[%clk 0:02:47]} 3. e5 {[%clk 0:02:59]}  Bf5 {[%clk 0:02:47]} 4. c3 {[%clk 0:02:58]}  e6 {[%clk 0:02:47]} 5. f4 {[%clk 0:02:52]}  f6 {[%clk 0:02:41]} 6. Nf3 {[%clk 0:02:47]}  Qd7 {[%clk 0:02:41]} 7. Bd3 {[%clk 0:02:47]}  Nge7 {[%clk 0:02:40]} 8. O-O {[%clk 0:02:47]}  h5 {[%clk 0:02:40]} 9. Na3 {[%clk 0:02:47]}  O-O-O {[%clk 0:02:39]} 10. Nc2 {[%clk 0:02:47]}  h4 {[%clk 0:02:35]} 11. Ne3 {[%clk 0:02:44]}  fxe5 {[%clk 0:02:32]} 12. fxe5 {[%clk 0:02:39]}  g6 {[%clk 0:02:31]} 13. h3 {[%clk 0:02:33]}  Bh6 {[%clk 0:02:24]} 14. Ng4 {[%clk 0:02:33]}  Bxg4 {[%clk 0:02:15]} 15. hxg4 {[%clk 0:02:31]}  h3 {[%clk 0:02:15]} 16. g3 {[%clk 0:02:17]}  Bxc1 {[%clk 0:02:03]} 17. Qxc1 {[%clk 0:02:17]}  Rdf8 {[%clk 0:02:02]} 18. Kh2 {[%clk 0:02:12]}  Nd8 {[%clk 0:01:59]} 19. Ng5 {[%clk 0:02:11]}  Rxf1 {[%clk 0:01:29]} 20. Qxf1 {[%clk 0:02:10]}  Qe8 {[%clk 0:01:19]} 21. Qe2 {[%clk 0:02:09]}  Ng8 {[%clk 0:01:17]} 22. Rf1 {[%clk 0:02:06]}  Qe7 {[%clk 0:01:12]} 23. Qe3 {[%clk 0:02:06]}  Nh6 {[%clk 0:01:12]} 24. Be2 {[%clk 0:02:03]}  Rf8 {[%clk 0:01:10]} 25. Rxf8 {[%clk 0:01:45]}  Qxf8 {[%clk 0:01:11]} 26. Qf4 {[%clk 0:01:45]}  Qe7 {[%clk 0:01:07]} 27. Qf6 {[%clk 0:00:57]}  Qxf6 {[%clk 0:01:03]} 28. exf6 {[%clk 0:00:58]}  Nhf7 {[%clk 0:01:01]} 29. Nf3 {[%clk 0:00:49]}  g5 {[%clk 0:00:55]} 30. Bd3 {[%clk 0:00:45]}  Kd7 {[%clk 0:00:53]} 31. Bg6 {[%clk 0:00:43]}  Kd6 {[%clk 0:00:53]} 32. Kxh3 {[%clk 0:00:40]}  b6 {[%clk 0:00:37]} 33. Kg2 {[%clk 0:00:33]}  c5 {[%clk 0:00:35]} 34. Ne5 {[%clk 0:00:31]}  Nh6 {[%clk 0:00:32]} 35. Bh5 {[%clk 0:00:26]}  b5 {[%clk 0:00:25]} 36. Kf3 {[%clk 0:00:20]}  c4 {[%clk 0:00:25]} 37. Ke3 {[%clk 0:00:19]}  a5 {[%clk 0:00:25]} 38. b3 {[%clk 0:00:17]}  cxb3 {[%clk 0:00:25]} 39. axb3 {[%clk 0:00:17]}  a4 {[%clk 0:00:25]} 40. bxa4 {[%clk 0:00:18]}  bxa4 {[%clk 0:00:26]} 41. Kd2 {[%clk 0:00:18]}  a3 {[%clk 0:00:05]} 42. Kc2 {[%clk 0:00:18]}  Nc6 {[%clk 0:00:03]} 43. Nxc6 {[%clk 0:00:16]}  Kxc6 {[%clk 0:00:04]} 44. f7 {[%clk 0:00:16]}  Nxf7 {[%clk 0:00:03]} 45. Bxf7 {[%clk 0:00:16]}  Kd6 {[%clk 0:00:04]} 46. Kb3 {[%clk 0:00:16]}  e5 {[%clk 0:00:05]} 47. dxe5+ {[%clk 0:00:16]}  Kxe5 {[%clk 0:00:06]} 48. Kxa3 {[%clk 0:00:17]}  d4 {[%clk 0:00:06]} 49. cxd4+ {[%clk 0:00:17]}  Kxd4 {[%clk 0:00:07]} 50. Kb4 {[%clk 0:00:17]}  Ke3 {[%clk 0:00:08]} 51. Be6 {[%clk 0:00:17]}  Kf2 {[%clk 0:00:09]} 52. Kc5 {[%clk 0:00:17]}  Kxg3 {[%clk 0:00:10]} 53. Kd6 {[%clk 0:00:17]}  Kh4 {[%clk 0:00:11]} 54. Ke7 {[%clk 0:00:17]}  Kg3 {[%clk 0:00:12]} 55. Kf6 {[%clk 0:00:18]}  Kh4 {[%clk 0:00:12]} 56. Kg6 {[%clk 0:00:18]}  Kg3 {[%clk 0:00:12]} 57. Kxg5 {[%clk 0:00:19]} 1-0


[Site "https://www.chess.com"]